[Event "44th Chess Olympiad Women 2022"]
[Site "Chennai"]
[Date "2022.07.31"]
[Round "3.38"]
[White "Morales Flores, Monserrat"]
[Black "Cho, Yeonhee"]
[Result "1-0"]
[WhiteElo "1946"]
[BlackElo "1427"]
[Annotator "NA"]
[PlyCount "71"]
[EventDate "2022.??.??"]
[TimeControl "60"]

1. e4 {[%emt 0:00:04]} e5 {[%emt 0:00:05]} 2. Nf3 {[%emt 0:00:09]} Nc6 {
[%emt 0:00:07]} 3. Bc4 {[%emt 0:00:23]} Bc5 {[%emt 0:04:41]} 4. c3 {[%emt 0:00:
00]} Nf6 {[%emt 0:00:09]} 5. d4 {[%emt 0:00:32]} exd4 {[%emt 0:00:07]} 6. e5 {
[%emt 0:00:15]} d5 {[%emt 0:00:17]} 7. Bb5 {[%emt 0:00:08]} Ne4 {[%emt 0:00:10]
} 8. cxd4 {[%emt 0:00:21]} Bb6 {[%emt 0:00:06]} 9. Nc3 {[%emt 0:00:50]} Bg4 {
[%emt 0:06:56]} 10. Be3 {[%emt 0:01:27]} O-O {[%emt 0:00:26]} 11. h3 {[%emt 0:
00:00]} Bh5 {[%emt 0:11:33]} 12. Qc2 {[%emt 0:10:08]} Bg6 {[%emt 0:30:37]} 13.
Qb3 {[%emt 0:05:32]} Ne7 {[%emt 0:23:38]} 14. O-O {[%emt 0:03:23]} c6 {[%emt 0:
00:00]} 15. Bd3 {[%emt 0:04:24]} Nxf2 {[%emt 0:06:14]} 16. Bxg6 {[%emt 0:00:28]
} Nxh3+ {[%emt 0:00:07]} 17. gxh3 {[%emt 0:00:05]} Nxg6 {[%emt 0:00:05]} 18.
Ne2 {[%emt 0:04:05]} Re8 {[%emt 0:03:57]} 19. Ng3 {[%emt 0:01:37]} f6 {[%emt 0:
00:00]} 20. exf6 {[%emt 0:18:49]} Qxf6 {[%emt 0:00:08]} 21. Rae1 {[%emt 0:00:
00]} Qd6 {[%emt 0:03:51]} 22. Nf5 {[%emt 0:00:58]} Qd7 {[%emt 0:00:38]} 23. Qd3
{[%emt 0:00:40]} Ne7 {[%emt 0:00:44]} 24. Ng5 {[%emt 0:02:08]} Nxf5 {[%emt 0:
00:00]} 25. Rxf5 {[%emt 0:00:06]} Qd6 {[%emt 0:00:36]} 26. Rf3 {[%emt 0:08:53]}
g6 {[%emt 0:00:39]} 27. Qf1 {[%emt 0:00:35]} Rf8 {[%emt 0:00:21]} 28. Qg2 {
[%emt 0:02:55]} Rxf3 {[%emt 0:00:13]} 29. Nxf3 {[%emt 0:00:08]} Rf8 {[%emt 0:
00:00]} 30. Bh6 {[%emt 0:00:19]} Rd8 {[%emt 0:00:21]} 31. Qg5 {[%emt 0:01:01]}
Bc7 {[%emt 0:01:10]} 32. Re7 {[%emt 0:01:05]} Qg3+ {[%emt 0:00:29]} 33. Qxg3 {
[%emt 0:00:05]} Bxg3 {[%emt 0:00:04]} 34. Rxb7 {[%emt 0:00:18]} Rb8 {[%emt 0:
00:00]} 35. Rg7+ {[%emt 0:00:14]} Kh8 {[%emt 0:00:06]} 36. Ng5 {[%emt 0:00:07]}
1-0

[Event "44th Chess Olympiad Women 2022"]
[Site "Chennai"]
[Date "2022.07.31"]
[Round "3.38"]
[White "Park, Haneul"]
[Black "Toro Pradenas, Maria Jose"]
[Result "0-1"]
[WhiteElo "1531"]
[BlackElo "1945"]
[Annotator "NA RC"]
[PlyCount "50"]
[EventDate "2022.??.??"]
[TimeControl "60"]

1. d4 {[%emt 0:00:03]} d5 {[%emt 0:00:08]} 2. c4 {[%emt 0:00:08]} c6 {[%emt 0:
00:00]} 3. Nc3 {[%emt 0:00:10]} Nf6 {[%emt 0:00:09]} 4. Nf3 {[%emt 0:00:07]} e6
{[%emt 0:00:57]} 5. e3 {[%emt 0:00:36]} Nbd7 {[%emt 0:00:34]} 6. Qc2 {[%emt 0:
00:00]} Bd6 {[%emt 0:01:19]} 7. Bd3 {[%emt 0:00:15]} O-O {[%emt 0:00:45]} 8.
O-O {[%emt 0:01:17]} dxc4 {[%emt 0:05:06]} 9. Bxc4 {[%emt 0:00:08]} e5 {
[%emt 0:00:36]} 10. Rd1 {[%emt 0:13:42]} Qe7 {[%emt 0:05:53]} 11. e4 {[%emt 0:
00:00]} exd4 {[%emt 0:13:29]} 12. Nxd4 {[%emt 0:01:36]} Ne5 {[%emt 0:02:56]}
13. Bb3 {[%emt 0:02:19]} Ng6 {[%emt 0:03:30]} 14. Bg5 {[%emt 0:06:41]} Bxh2+ {
[%emt 0:03:33]} 15. Kh1 {[%emt 0:15:47]} Bc7 {[%emt 0:08:09]} 16. Nf5 {[%emt 0:
00:00]} Qe5 {[%emt 0:05:03]} 17. g3 {[%emt 0:03:34]} Nxe4 {[%emt 0:02:42]} 18.
f4 {[%emt 0:01:46]} Qxf5 {[%emt 0:01:31]} 19. Qxe4 {[%emt 0:00:32]} Qh3+ {
[%emt 0:00:38]} 20. Kg1 {[%emt 0:00:19]} Bb6+ {[%emt 0:00:06]} 21. Rd4 {
[%emt 0:00:32]} Bf5 {[%emt 0:00:53]} 22. Qe3 {[%emt 0:00:42]} Rfe8 {[%emt 0:00:
00]} 23. Qd2 {[%emt 0:00:23]} Qxg3+ {[%emt 0:00:43]} 24. Kh1 {[%emt 0:00:17]}
Bxd4 {[%emt 0:00:23]} 25. Qxd4 {[%emt 0:00:08]} Bg4 {[%emt 0:00:22]} 0-1

[Event "44th Chess Olympiad Women 2022"]
[Site "Chennai"]
[Date "2022.07.31"]
[Round "3.38"]
[White "Park, Sunwoo"]
[Black "Gomez Barrera, Javiera Belen"]
[Result "0-1"]
[WhiteElo "1773"]
[BlackElo "2210"]
[Annotator "RC"]
[PlyCount "76"]
[EventDate "2022.??.??"]
[TimeControl "60"]

1. e4 {[%emt 0:00:04]} e5 {[%emt 0:00:25]} 2. Nf3 {[%emt 0:00:05]} Nc6 {
[%emt 0:00:03]} 3. Bc4 {[%emt 0:00:05]} Bc5 {[%emt 0:00:05]} 4. d3 {[%emt 0:00:
00]} Nf6 {[%emt 0:00:31]} 5. O-O {[%emt 0:00:10]} d6 {[%emt 0:03:18]} 6. c3 {
[%emt 0:00:10]} a5 {[%emt 0:01:09]} 7. Nbd2 {[%emt 0:01:22]} O-O {[%emt 0:00:
00]} 8. Re1 {[%emt 0:00:52]} Be6 {[%emt 0:04:28]} 9. Bb5 {[%emt 0:00:40]} Ne7 {
[%emt 0:11:25]} 10. Nf1 {[%emt 0:01:22]} c6 {[%emt 0:02:45]} 11. Ba4 {[%emt 0:
00:00]} Ng6 {[%emt 0:00:39]} 12. Be3 {[%emt 0:03:47]} Bxe3 {[%emt 0:04:59]} 13.
Rxe3 {[%emt 0:00:35]} d5 {[%emt 0:20:26]} 14. exd5 {[%emt 0:09:26]} Nxd5 {
[%emt 0:00:16]} 15. Re1 {[%emt 0:00:21]} Ndf4 {[%emt 0:04:10]} 16. Bc2 {
[%emt 0:15:31]} Bf5 {[%emt 0:14:47]} 17. d4 {[%emt 0:13:42]} Bxc2 {[%emt 0:00:
00]} 18. Qxc2 {[%emt 0:00:31]} exd4 {[%emt 0:00:01]} 19. cxd4 {[%emt 0:04:02]}
a4 {[%emt 0:04:38]} 20. Ng3 {[%emt 0:03:37]} Ra5 {[%emt 0:05:58]} 21. Rad1 {
[%emt 0:02:04]} Qd5 {[%emt 0:01:09]} 22. Qe4 {[%emt 0:11:41]} Qxa2 {[%emt 0:00:
00]} 23. Ne5 {[%emt 0:06:29]} Qd5 {[%emt 0:03:08]} 24. Nf5 {[%emt 0:06:20]}
Qxe4 {[%emt 0:09:19]} 25. Rxe4 {[%emt 0:00:11]} Rd8 {[%emt 0:00:49]} 26. Rde1 {
[%emt 0:03:23]} h5 {[%emt 0:04:24]} 27. g3 {[%emt 0:03:34]} Nxe5 {[%emt 0:00:
00]} 28. dxe5 {[%emt 0:00:31]} Nd3 {[%emt 0:01:49]} 29. Rd1 {[%emt 0:00:36]}
Rd7 {[%emt 0:00:37]} 30. Re3 {[%emt 0:05:32]} Nxe5 {[%emt 0:00:35]} 31. Rde1 {
[%emt 0:01:28]} f6 {[%emt 0:00:27]} 32. Nh4 {[%emt 0:01:02]} Rb5 {[%emt 0:00:
00]} 33. R1e2 {[%emt 0:01:49]} Nc4 {[%emt 0:00:28]} 34. Re8+ {[%emt 0:00:19]}
Kf7 {[%emt 0:00:30]} 35. Rh8 {[%emt 0:02:38]} Re7 {[%emt 0:00:33]} 36. Rc2 {
[%emt 0:01:15]} Nxb2 {[%emt 0:00:07]} 37. Ra8 {[%emt 0:00:54]} Nd3 {[%emt 0:00:
00]} 38. Rxa4 {[%emt 0:00:28]} Rb1+ {[%emt 0:00:11]} 0-1

[Event "44th Chess Olympiad Women 2022"]
[Site "Chennai"]
[Date "2022.07.31"]
[Round "3.38"]
[White "Sanchez Tobar, Francisca Valenti"]
[Black "Kang, Sohyun"]
[Result "1-0"]
[WhiteElo "1839"]
[BlackElo "1593"]
[Annotator "NA RC"]
[PlyCount "57"]
[EventDate "2022.??.??"]
[TimeControl "60"]

1. e4 {[%emt 0:00:10]} e6 {[%emt 0:00:04]} 2. d4 {[%emt 0:00:15]} d5 {[%emt 0:
00:00]} 3. Nd2 {[%emt 0:00:16]} c5 {[%emt 0:00:33]} 4. Ngf3 {[%emt 0:00:42]}
cxd4 {[%emt 0:01:34]} 5. Nxd4 {[%emt 0:01:02]} Nc6 {[%emt 0:01:24]} 6. Bb5 {
[%emt 0:04:39]} Bd7 {[%emt 0:00:13]} 7. Nxc6 {[%emt 0:00:48]} bxc6 {[%emt 0:00:
00]} 8. Bd3 {[%emt 0:00:13]} Bd6 {[%emt 0:01:10]} 9. Qe2 {[%emt 0:00:57]} Qc7 {
[%emt 0:04:30]} 10. Nf3 {[%emt 0:01:01]} Ne7 {[%emt 0:03:35]} 11. e5 {[%emt 0:
00:00]} Bc5 {[%emt 0:00:41]} 12. c3 {[%emt 0:00:36]} Bb6 {[%emt 0:05:28]} 13.
O-O {[%emt 0:02:08]} c5 {[%emt 0:04:46]} 14. c4 {[%emt 0:11:05]} d4 {[%emt 0:
00:00]} 15. a3 {[%emt 0:00:53]} Bc6 {[%emt 0:03:50]} 16. b4 {[%emt 0:03:51]}
Rd8 {[%emt 0:01:31]} 17. Re1 {[%emt 0:20:21]} Ng6 {[%emt 0:02:46]} 18. Bg5 {
[%emt 0:10:42]} Rc8 {[%emt 0:01:41]} 19. Nh4 {[%emt 0:02:01]} Qb8 {[%emt 0:00:
00]} 20. Rab1 {[%emt 0:00:39]} Qa8 {[%emt 0:02:44]} 21. Qg4 {[%emt 0:05:09]} a6
{[%emt 0:08:20]} 22. Bxg6 {[%emt 0:03:01]} hxg6 {[%emt 0:00:38]} 23. Nxg6 {
[%emt 0:00:19]} Rh7 {[%emt 0:05:39]} 24. Ne7 {[%emt 0:00:59]} Rc7 {[%emt 0:00:
00]} 25. bxc5 {[%emt 0:04:55]} Bxc5 {[%emt 0:05:32]} 26. Nxc6 {[%emt 0:00:10]}
Qxc6 {[%emt 0:03:38]} 27. Rb8+ {[%emt 0:00:14]} Rc8 {[%emt 0:00:49]} 28. Qe4 {
[%emt 0:00:16]} Kd7 {[%emt 0:03:02]} 29. Rxc8 {[%emt 0:00:49]} 1-0

[Event "44th Chess Olympiad Women 2022"]
[Site "Chennai"]
[Date "2022.07.31"]
[Round "3.39"]
[White "Ndirangu, Joyce Nyaruai"]
[Black "Matute Escobar, Roxanny"]
[Result "1-0"]
[WhiteElo "1679"]
[BlackElo "1834"]
[Annotator "NA"]
[PlyCount "141"]
[EventDate "2022.??.??"]
[TimeControl "60"]

1. d4 {[%emt 0:00:41]} Nf6 {[%emt 0:00:10]} 2. Nf3 {[%emt 0:00:15]} g6 {
[%emt 0:00:19]} 3. c4 {[%emt 0:00:19]} Bg7 {[%emt 0:00:16]} 4. Nc3 {[%emt 0:00:
00]} O-O {[%emt 0:00:23]} 5. e4 {[%emt 0:01:14]} d6 {[%emt 0:00:13]} 6. Be2 {
[%emt 0:00:07]} e5 {[%emt 0:00:41]} 7. dxe5 {[%emt 0:04:07]} dxe5 {[%emt 0:00:
00]} 8. Qxd8 {[%emt 0:02:15]} Rxd8 {[%emt 0:00:11]} 9. Bg5 {[%emt 0:00:04]} Re8
{[%emt 0:02:26]} 10. O-O {[%emt 0:05:59]} c6 {[%emt 0:14:18]} 11. Rad1 {
[%emt 0:02:23]} Nbd7 {[%emt 0:01:43]} 12. Rd6 {[%emt 0:04:32]} h6 {[%emt 0:00:
00]} 13. Be3 {[%emt 0:32:15]} Bf8 {[%emt 0:02:17]} 14. Rdd1 {[%emt 0:01:58]}
Nc5 {[%emt 0:06:35]} 15. Nd2 {[%emt 0:06:42]} Ng4 {[%emt 0:06:47]} 16. Bxg4 {
[%emt 0:02:24]} Bxg4 {[%emt 0:00:07]} 17. f3 {[%emt 0:00:02]} Be6 {[%emt 0:00:
00]} 18. b3 {[%emt 0:03:23]} Rad8 {[%emt 0:03:28]} 19. Ndb1 {[%emt 0:03:38]} f5
{[%emt 0:17:33]} 20. Rxd8 {[%emt 0:08:56]} Rxd8 {[%emt 0:00:09]} 21. Rd1 {
[%emt 0:00:03]} Rxd1+ {[%emt 0:01:06]} 22. Nxd1 {[%emt 0:00:06]} fxe4 {[%emt 0:
00:00]} 23. fxe4 {[%emt 0:00:09]} Nxe4 {[%emt 0:01:11]} 24. Bxa7 {[%emt 0:00:
00]} Bg4 {[%emt 0:08:35]} 25. Nf2 {[%emt 0:00:27]} Nxf2 {[%emt 0:00:40]} 26.
Kxf2 {[%emt 0:00:02]} Bb4 {[%emt 0:01:27]} 27. Ke3 {[%emt 0:03:46]} Kf7 {
[%emt 0:01:38]} 28. Nd2 {[%emt 0:03:08]} Be7 {[%emt 0:08:36]} 29. Ne4 {[%emt 0:
00:00]} Ba3 {[%emt 0:03:14]} 30. h3 {[%emt 0:01:58]} Bc8 {[%emt 0:02:07]} 31.
Bc5 {[%emt 0:02:06]} Bxc5+ {[%emt 0:01:14]} 32. Nxc5 {[%emt 0:00:02]} Ke7 {
[%emt 0:01:15]} 33. Ke4 {[%emt 0:07:43]} Kd6 {[%emt 0:01:11]} 34. b4 {[%emt 0:
00:00]} b5 {[%emt 0:01:51]} 35. Kd3 {[%emt 0:04:16]} h5 {[%emt 0:01:11]} 36. h4
{[%emt 0:00:44]} Bf5+ {[%emt 0:00:08]} 37. Kc3 {[%emt 0:00:20]} bxc4 {[%emt 0:
00:00]} 38. Kxc4 {[%emt 0:00:03]} Bg4 {[%emt 0:00:21]} 39. Ne4+ {[%emt 0:01:08]
} Ke6 {[%emt 0:00:40]} 40. Kc5 {[%emt 0:00:29]} Bf5 {[%emt 0:00:27]} 41. Ng5+ {
[%emt 0:30:23]} Kd7 {[%emt 0:30:06]} 42. a4 {[%emt 0:00:09]} Kc7 {[%emt 0:00:
00]} 43. Nf7 {[%emt 0:00:24]} e4 {[%emt 0:00:08]} 44. Kd4 {[%emt 0:00:14]} Kb6
{[%emt 0:00:00]} 45. Nd6 {[%emt 0:00:00]} Be6 {[%emt 0:00:00]} 46. Nxe4 {
[%emt 0:00:00]} Bb3 {[%emt 0:00:00]} 47. a5+ {[%emt 0:00:00]} Kb5 {[%emt 0:00:
00]} 48. Nc5 {[%emt 0:00:00]} Bd5 {[%emt 0:00:00]} 49. g3 {[%emt 0:00:00]} Bf3
{[%emt 0:00:00]} 50. Ne4 {[%emt 0:00:00]} Bg2 {[%emt 0:00:00]} 51. Nc5 {
[%emt 0:00:00]} Bh3 {[%emt 0:00:00]} 52. Kc3 {[%emt 0:00:00]} Bf5 {[%emt 0:00:
00]} 53. Nb7 {[%emt 0:00:00]} Bb1 {[%emt 0:00:00]} 54. Nd6+ {[%emt 0:00:00]}
Ka6 {[%emt 0:00:00]} 55. Kd4 {[%emt 0:00:00]} Ba2 {[%emt 0:00:00]} 56. Kc5 {
[%emt 0:00:00]} Bd5 {[%emt 0:00:00]} 57. Nc8 {[%emt 0:00:00]} Kb7 {[%emt 0:00:
00]} 58. Ne7 {[%emt 0:00:00]} Be4 {[%emt 0:00:00]} 59. Kd6 {[%emt 0:00:00]} Ka6
{[%emt 0:00:00]} 60. Kc5 {[%emt 0:00:00]} Kb7 {[%emt 0:00:00]} 61. a6+ {
[%emt 0:00:00]} Kxa6 {[%emt 0:00:00]} 62. Nxc6 {[%emt 0:00:00]} Kb7 {[%emt 0:
00:00]} 63. Na5+ {[%emt 0:00:00]} Kc7 {[%emt 0:00:00]} 64. b5 {[%emt 0:00:00]}
Bf3 {[%emt 0:00:00]} 65. b6+ {[%emt 0:00:00]} Kd7 {[%emt 0:00:00]} 66. Nc4 {
[%emt 0:00:00]} Ke6 {[%emt 0:00:00]} 67. Kd4 {[%emt 0:00:00]} g5 {[%emt 0:00:
00]} 68. hxg5 {[%emt 0:00:00]} Kf5 {[%emt 0:00:00]} 69. g6 {[%emt 0:00:00]} Kf6
{[%emt 0:00:00]} 70. Ne5 {[%emt 0:04:14]} Bg2 {[%emt 0:00:00]} 71. Kc5 {
[%emt 0:00:14]} 1-0

[Event "44th Chess Olympiad Women 2022"]
[Site "Chennai"]
[Date "2022.07.31"]
[Round "3.39"]
[White "Obondo, Cynthia Awino"]
[Black "Otazo Sanchez, Annyd Gabriela"]
[Result "0-1"]
[WhiteElo "1439"]
[BlackElo "1932"]
[Annotator "NA RC"]
[PlyCount "64"]
[EventDate "2022.??.??"]
[TimeControl "60"]

1. d4 {[%emt 0:02:15]} Nf6 {[%emt 0:00:05]} 2. Nf3 {[%emt 0:00:11]} g6 {
[%emt 0:00:13]} 3. e3 {[%emt 0:00:26]} Bg7 {[%emt 0:00:08]} 4. Bd3 {[%emt 0:00:
00]} d6 {[%emt 0:00:09]} 5. O-O {[%emt 0:01:39]} O-O {[%emt 0:00:14]} 6. b3 {
[%emt 0:00:07]} Nc6 {[%emt 0:00:50]} 7. Bb2 {[%emt 0:00:27]} e5 {[%emt 0:01:48]
} 8. Nbd2 {[%emt 0:04:57]} Re8 {[%emt 0:00:38]} 9. Bb5 {[%emt 0:14:07]} e4 {
[%emt 0:02:13]} 10. Bxc6 {[%emt 0:01:08]} bxc6 {[%emt 0:00:15]} 11. Ne1 {
[%emt 0:02:09]} Bg4 {[%emt 0:02:06]} 12. f3 {[%emt 0:01:14]} exf3 {[%emt 0:00:
00]} 13. gxf3 {[%emt 0:00:19]} Bh3 {[%emt 0:00:12]} 14. Ng2 {[%emt 0:08:57]}
Bxg2 {[%emt 0:00:10]} 15. Kxg2 {[%emt 0:00:13]} Rxe3 {[%emt 0:00:08]} 16. Nc4 {
[%emt 0:00:14]} Re6 {[%emt 0:02:09]} 17. Qd2 {[%emt 0:01:11]} Nd5 {[%emt 0:00:
00]} 18. Rae1 {[%emt 0:03:34]} Qh4 {[%emt 0:05:12]} 19. Rxe6 {[%emt 0:02:09]}
fxe6 {[%emt 0:00:09]} 20. Bc1 {[%emt 0:02:08]} Qxd4 {[%emt 0:06:30]} 21. Qe2 {
[%emt 0:02:33]} Qf6 {[%emt 0:00:57]} 22. Na5 {[%emt 0:06:54]} c5 {[%emt 0:00:
00]} 23. Qa6 {[%emt 0:04:14]} Rf8 {[%emt 0:01:30]} 24. Qxa7 {[%emt 0:03:49]}
Nf4+ {[%emt 0:01:26]} 25. Bxf4 {[%emt 0:05:45]} Qxf4 {[%emt 0:00:08]} 26. Nc6 {
[%emt 0:05:40]} Qg5+ {[%emt 0:03:15]} 27. Kh1 {[%emt 0:07:35]} Qd2 {[%emt 0:00:
00]} 28. Qxc7 {[%emt 0:05:22]} Qe2 {[%emt 0:01:16]} 29. Kg1 {[%emt 0:03:14]}
Bh6 {[%emt 0:00:34]} 30. Ne7+ {[%emt 0:07:23]} Kh8 {[%emt 0:00:20]} 31. Rb1 {
[%emt 0:04:29]} Be3+ {[%emt 0:00:07]} 32. Kh1 {[%emt 0:00:14]} Qxf3# {[%emt 0:
00:00]} 0-1

[Event "44th Chess Olympiad Women 2022"]
[Site "Chennai"]
[Date "2022.07.31"]
[Round "3.39"]
[White "Perez Hernandez, Vicmary C."]
[Black "Madelta Glenda"]
[Result "1-0"]
[WhiteElo "1862"]
[BlackElo "1516"]
[Annotator "NA RC"]
[PlyCount "49"]
[EventDate "2022.??.??"]
[TimeControl "60"]

1. e4 {[%emt 0:00:01]} e6 {[%emt 0:03:48]} 2. d4 {[%emt 0:01:08]} d5 {[%emt 0:
00:00]} 3. e5 {[%emt 0:00:47]} c5 {[%emt 0:00:06]} 4. c3 {[%emt 0:00:37]} Bd7 {
[%emt 0:00:06]} 5. Nf3 {[%emt 0:00:22]} Nc6 {[%emt 0:00:09]} 6. a3 {[%emt 0:00:
00]} a5 {[%emt 0:00:46]} 7. Bd3 {[%emt 0:01:50]} Qb6 {[%emt 0:00:17]} 8. O-O {
[%emt 0:01:07]} cxd4 {[%emt 0:00:12]} 9. cxd4 {[%emt 0:04:42]} Nxd4 {[%emt 0:
00:00]} 10. Nxd4 {[%emt 0:03:10]} Qxd4 {[%emt 0:00:17]} 11. Qe2 {[%emt 0:00:04]
} Qb6 {[%emt 0:07:22]} 12. Nc3 {[%emt 0:00:50]} Ne7 {[%emt 0:02:27]} 13. Qg4 {
[%emt 0:21:21]} Ng6 {[%emt 0:01:29]} 14. Qg3 {[%emt 0:03:12]} Be7 {[%emt 0:00:
00]} 15. Re1 {[%emt 0:14:01]} Bc6 {[%emt 0:04:52]} 16. Rb1 {[%emt 0:05:50]} Bh4
{[%emt 0:03:50]} 17. Qf3 {[%emt 0:00:30]} d4 {[%emt 0:00:40]} 18. Ne4 {[%emt 0:
00:00]} Nxe5 {[%emt 0:03:35]} 19. Nd6+ {[%emt 0:23:21]} Kd7 {[%emt 0:01:14]}
20. Qf4 {[%emt 0:01:52]} Bxf2+ {[%emt 0:00:28]} 21. Qxf2 {[%emt 0:00:06]} Kxd6
{[%emt 0:03:15]} 22. Rxe5 {[%emt 0:00:19]} Kxe5 {[%emt 0:08:09]} 23. Bf4+ {
[%emt 0:00:17]} Kd5 {[%emt 0:00:17]} 24. Qf3+ {[%emt 0:00:04]} Kc5 {[%emt 0:00:
00]} 25. Rc1# {[%emt 0:00:00]} 1-0

[Event "44th Chess Olympiad Women 2022"]
[Site "Chennai"]
[Date "2022.07.31"]
[Round "3.39"]
[White "Varela La Madrid, Tilsia Carolina"]
[Black "Mongeli, Sasha"]
[Result "1-0"]
[WhiteElo "2079"]
[BlackElo "1672"]
[Annotator "NA"]
[PlyCount "119"]
[EventDate "2022.??.??"]
[TimeControl "60"]

1. e4 {[%emt 0:00:06]} c6 {[%emt 0:01:11]} 2. d4 {[%emt 0:00:06]} d5 {[%emt 0:
00:00]} 3. Nc3 {[%emt 0:00:06]} dxe4 {[%emt 0:00:06]} 4. Nxe4 {[%emt 0:00:06]}
Nd7 {[%emt 0:00:05]} 5. Nf3 {[%emt 0:00:06]} Ngf6 {[%emt 0:00:13]} 6. Ng3 {
[%emt 0:00:05]} e6 {[%emt 0:00:20]} 7. Bd3 {[%emt 0:00:07]} c5 {[%emt 0:01:02]}
8. O-O {[%emt 0:00:13]} cxd4 {[%emt 0:01:05]} 9. Nxd4 {[%emt 0:00:14]} Bc5 {
[%emt 0:00:16]} 10. Nb3 {[%emt 0:01:09]} O-O {[%emt 0:01:18]} 11. Bg5 {[%emt 0:
00:00]} Be7 {[%emt 0:01:09]} 12. Qe2 {[%emt 0:03:03]} b6 {[%emt 0:08:16]} 13.
Rad1 {[%emt 0:03:32]} Bb7 {[%emt 0:06:46]} 14. Bxf6 {[%emt 0:10:43]} Bxf6 {
[%emt 0:01:39]} 15. Bb5 {[%emt 0:00:09]} Bc8 {[%emt 0:02:04]} 16. Qd3 {[%emt 0:
00:00]} Qc7 {[%emt 0:10:32]} 17. Ne4 {[%emt 0:03:11]} Be7 {[%emt 0:09:46]} 18.
Qg3 {[%emt 0:06:10]} Qxg3 {[%emt 0:04:11]} 19. hxg3 {[%emt 0:00:24]} Nf6 {
[%emt 0:01:38]} 20. Nd6 {[%emt 0:01:39]} Rd8 {[%emt 0:00:54]} 21. Nxc8 {
[%emt 0:03:01]} Raxc8 {[%emt 0:00:08]} 22. Nd4 {[%emt 0:00:18]} Bc5 {[%emt 0:
00:00]} 23. Ba6 {[%emt 0:00:48]} Rc7 {[%emt 0:09:31]} 24. Nb3 {[%emt 0:02:07]}
Rxd1 {[%emt 0:06:55]} 25. Rxd1 {[%emt 0:00:07]} Be7 {[%emt 0:00:04]} 26. c3 {
[%emt 0:00:38]} Kf8 {[%emt 0:01:36]} 27. Kf1 {[%emt 0:00:13]} Ne4 {[%emt 0:00:
00]} 28. Bd3 {[%emt 0:02:06]} Nc5 {[%emt 0:01:13]} 29. Nd4 {[%emt 0:00:12]}
Nxd3 {[%emt 0:01:14]} 30. Rxd3 {[%emt 0:00:08]} Rd7 {[%emt 0:00:14]} 31. Nxe6+
{[%emt 0:00:14]} Ke8 {[%emt 0:01:33]} 32. Nxg7+ {[%emt 0:00:07]} Kd8 {[%emt 0:
00:00]} 33. Rxd7+ {[%emt 0:00:07]} Kxd7 {[%emt 0:00:05]} 34. Nf5 {[%emt 0:00:
00]} Bg5 {[%emt 0:01:27]} 35. Ke2 {[%emt 0:00:13]} Bc1 {[%emt 0:00:33]} 36. b3
{[%emt 0:00:06]} Ke6 {[%emt 0:07:32]} 37. Nd4+ {[%emt 0:00:12]} Kd5 {[%emt 0:
00:00]} 38. Kd3 {[%emt 0:00:21]} Bh6 {[%emt 0:00:55]} 39. Nb5 {[%emt 0:00:38]}
a5 {[%emt 0:01:05]} 40. a4 {[%emt 0:01:50]} Bf8 {[%emt 0:00:39]} 41. Nd4 {
[%emt 0:30:48]} Be7 {[%emt 0:31:41]} 42. Nf5 {[%emt 0:00:38]} Bc5 {[%emt 0:00:
00]} 43. Ne3+ {[%emt 0:00:35]} Ke5 {[%emt 0:00:27]} 44. f4+ {[%emt 0:00:10]}
Ke6 {[%emt 0:00:40]} 45. g4 {[%emt 0:00:26]} Bd6 {[%emt 0:00:47]} 46. Ke4 {
[%emt 0:00:11]} Bc5 {[%emt 0:00:40]} 47. Nd5 {[%emt 0:00:49]} Bf2 {[%emt 0:00:
00]} 48. g5 {[%emt 0:00:27]} Bc5 {[%emt 0:01:15]} 49. Nf6 {[%emt 0:00:29]} h6 {
[%emt 0:02:59]} 50. f5+ {[%emt 0:00:12]} Ke7 {[%emt 0:03:22]} 51. Ng8+ {
[%emt 0:00:38]} Kf8 {[%emt 0:00:10]} 52. Nxh6 {[%emt 0:00:07]} Kg7 {[%emt 0:00:
00]} 53. Ng4 {[%emt 0:00:12]} Ba3 {[%emt 0:00:19]} 54. Ne5 {[%emt 0:00:09]} Bc5
{[%emt 0:03:06]} 55. f6+ {[%emt 0:00:12]} Kg8 {[%emt 0:00:16]} 56. Kf5 {
[%emt 0:00:08]} Be3 {[%emt 0:01:30]} 57. g6 {[%emt 0:00:09]} fxg6+ {[%emt 0:00:
00]} 58. Kxg6 {[%emt 0:00:07]} Bc5 {[%emt 0:00:00]} 59. Nd7 {[%emt 0:00:00]}
Kh8 {[%emt 0:00:00]} 60. Nxc5 {[%emt 0:00:00]} 1-0

[Event "44th Chess Olympiad Women 2022"]
[Site "Chennai"]
[Date "2022.07.31"]
[Round "3.40"]
[White "Adhikari, Kritisara"]
[Black "Avelino, Camila Biscaya"]
[Result "0-1"]
[WhiteElo "1552"]
[BlackElo "1863"]
[Annotator "NA"]
[PlyCount "92"]
[EventDate "2022.??.??"]
[TimeControl "60"]

1. d4 {[%emt 0:00:04]} Nf6 {[%emt 0:01:30]} 2. Bf4 {[%emt 0:00:17]} g6 {
[%emt 0:00:39]} 3. e3 {[%emt 0:00:12]} Bg7 {[%emt 0:00:32]} 4. Nf3 {[%emt 0:00:
00]} d6 {[%emt 0:00:48]} 5. Nbd2 {[%emt 0:00:34]} O-O {[%emt 0:01:16]} 6. h3 {
[%emt 0:04:01]} c5 {[%emt 0:01:05]} 7. c3 {[%emt 0:00:08]} Nc6 {[%emt 0:03:13]}
8. Be2 {[%emt 0:01:21]} cxd4 {[%emt 0:01:50]} 9. exd4 {[%emt 0:00:13]} Nd5 {
[%emt 0:03:11]} 10. Bg3 {[%emt 0:03:59]} e5 {[%emt 0:03:45]} 11. c4 {[%emt 0:
00:00]} Nc7 {[%emt 0:02:34]} 12. d5 {[%emt 0:03:32]} Ne7 {[%emt 0:02:22]} 13.
Qb3 {[%emt 0:04:49]} Na6 {[%emt 0:07:16]} 14. O-O {[%emt 0:02:23]} f5 {[%emt 0:
00:00]} 15. Rad1 {[%emt 0:07:12]} h6 {[%emt 0:09:09]} 16. Ne1 {[%emt 0:03:16]}
e4 {[%emt 0:02:55]} 17. Qa3 {[%emt 0:01:41]} f4 {[%emt 0:13:02]} 18. Bh2 {
[%emt 0:00:10]} f3 {[%emt 0:00:09]} 19. gxf3 {[%emt 0:01:54]} Bxh3 {[%emt 0:00:
00]} 20. Ng2 {[%emt 0:00:50]} exf3 {[%emt 0:04:01]} 21. Bxf3 {[%emt 0:00:15]}
Nf5 {[%emt 0:00:51]} 22. Be4 {[%emt 0:03:27]} Bg4 {[%emt 0:06:46]} 23. Rb1 {
[%emt 0:01:29]} Nc5 {[%emt 0:05:54]} 24. Bc2 {[%emt 0:03:54]} Nd4 {[%emt 0:00:
00]} 25. Be4 {[%emt 0:08:09]} Qg5 {[%emt 0:03:18]} 26. Qe3 {[%emt 0:03:14]}
Ne2+ {[%emt 0:00:52]} 27. Kh1 {[%emt 0:00:13]} Qh5 {[%emt 0:00:23]} 28. f3 {
[%emt 0:20:04]} Ng3+ {[%emt 0:00:29]} 29. Kg1 {[%emt 0:00:11]} Nxf1 {[%emt 0:
00:00]} 30. Rxf1 {[%emt 0:00:25]} Nxe4 {[%emt 0:00:42]} 31. Nxe4 {[%emt 0:00:
00]} Bxf3 {[%emt 0:01:15]} 32. Nxd6 {[%emt 0:02:52]} Bxg2 {[%emt 0:02:49]} 33.
Rxf8+ {[%emt 0:01:13]} Rxf8 {[%emt 0:00:09]} 34. Kxg2 {[%emt 0:00:05]} Qg4+ {
[%emt 0:00:48]} 35. Bg3 {[%emt 0:00:23]} Kh7 {[%emt 0:00:59]} 36. b3 {[%emt 0:
00:00]} h5 {[%emt 0:00:30]} 37. Qe7 {[%emt 0:01:46]} Rf3 {[%emt 0:00:28]} 38.
Ne4 {[%emt 0:00:33]} Rf5 {[%emt 0:00:38]} 39. Nf2 {[%emt 0:01:22]} Qf3+ {
[%emt 0:00:24]} 40. Kh3 {[%emt 0:00:18]} h4 {[%emt 0:00:22]} 41. Qxh4+ {
[%emt 0:30:07]} Rh5 {[%emt 0:30:06]} 42. Qxh5+ {[%emt 0:01:23]} gxh5 {[%emt 0:
00:00]} 43. Kh2 {[%emt 0:00:31]} Bd4 {[%emt 0:00:23]} 44. Nh1 {[%emt 0:00:40]}
Qf1 {[%emt 0:00:18]} 45. d6 {[%emt 0:00:55]} Qg1+ {[%emt 0:00:07]} 46. Kh3 {
[%emt 0:00:03]} Qxh1+ {[%emt 0:00:11]} 0-1